bitfinex/quotes_BTCUSD_20250617
["timestamp","ask_amount","ask_price","bid_price","bid_amount"]
[1750123744254,0.0844,107130.0,107120.0,0.96017278]
[1750123744751,0.0844,107130.0,107120.0,0.80389278]
[1750123745014,0.0844,107130.0,107120.0,0.40669278]
[1750123745217,0.0844,107130.0,107120.0,0.56297278]
[1750123749366,0.0844,107130.0,107120.0,0.7960336]
[1750123750005,0.0844,107130.0,107120.0,0.40669278]
[1750123750213,0.0844,107130.0,107120.0,0.56297278]
[1750123753462,0.0844,107130.0,107120.0,0.7960336]
[1750123754775,0.0844,107130.0,107120.0,0.56297278]
[1750123755206,0.0844,107130.0,107120.0,0.40669278]
[1750123755417,0.0844,107130.0,107120.0,0.56293278]
[1750123756060,0.09373384,107130.0,107120.0,0.56293278]
[1750123756270,0.09373375,107130.0,107120.0,0.56293278]
[1750123756479,0.10306759,107130.0,107120.0,0.54693278]
[1750123756733,0.34546224,107130.0,107120.0,0.27785102]
[1750123756936,0.34546224,107130.0,107120.0,0.43409102]
[1750123757773,0.11240134,107130.0,107120.0,0.43409102]
[1750123757991,0.10306741,107130.0,107120.0,0.43409102]
[1750123758202,0.11240125,107130.0,107120.0,0.43409102]
[1750123758412,0.12173526,107130.0,107120.0,0.43409102]
[1750123758620,0.11240125,107130.0,107120.0,0.43409102]
[1750123759029,0.13106945,107130.0,107120.0,0.43409102]
[1750123759267,0.31775851,107130.0,107120.0,0.26851631]
[1750123759469,0.53215235,107130.0,107120.0,0.41542099]
[1750123759882,0.53215235,107130.0,107120.0,0.25918099]
[1750123760092,0.53215235,107130.0,107120.0,0.42475587]
[1750123760297,0.54855235,107130.0,107120.0,0.42475587]
[1750123760944,0.36186329,107130.0,107120.0,0.44342538]
[1750123761152,0.5414868,107130.0,107120.0,0.43409067]
[1750123761792,0.35479774,107130.0,107120.0,0.44342538]
[1750123762010,0.5414868,107130.0,107120.0,0.43409067]
[1750123762232,0.87215279,107130.0,107120.0,0.24984602]
[1750123762454,0.90355279,107130.0,107120.0,0.42475596]
[1750123762965,0.44306846,107130.0,107120.0,0.43409067]
[1750123763172,0.45240239,107130.0,107120.0,0.43409067]
[1750123763389,0.46173675,107130.0,107120.0,0.43209067]
[1750123763602,0.46173675,107130.0,107120.0,0.42409067]
[1750123763809,0.69479757,107130.0,107120.0,0.42409067]
[1750123764462,0.70413202,107130.0,107120.0,0.42409067]
[1750123764812,0.70413202,107130.0,107120.0,0.42609067]
[1750123765658,0.67612894,107130.0,107120.0,0.42609067]
[1750123765862,0.44306812,107130.0,107120.0,0.42609067]
[1750123766077,0.63909163,107130.0,107120.0,0.40742108]
[1750123766287,0.87215245,107130.0,107120.0,0.41675605]
[1750123766695,0.87215245,107130.0,107120.0,0.42609093]
[1750123767349,0.68546321,107130.0,107120.0,0.43542564]
[1750123767549,0.68546321,107130.0,107120.0,0.42609085]
[1750123767764,0.44306759,107130.0,107120.0,0.46752556]
[1750123767982,0.43373366,107130.0,107120.0,0.46752556]
[1750123768193,0.4244,107130.0,107120.0,0.46752556]
[1750123769281,0.43373375,107130.0,107120.0,0.46752556]
[1750123769690,0.4244,107130.0,107120.0,0.46752556]
[1750123769912,0.0844,107130.0,107120.0,0.46752556]
[1750123770129,0.0844,107130.0,107120.0,0.56376732]
[1750123773474,0.09373366,107130.0,107120.0,0.56376732]
[1750123773907,0.0844,107130.0,107120.0,0.56376732]
[1750123774550,0.54148636,107130.0,107120.0,0.21875605]
[1750123774792,0.88148636,107130.0,107120.0,0.40734117]
[1750123774983,0.89658636,107130.0,107120.0,0.40734117]
[1750123775897,0.88148636,107130.0,107120.0,0.40734117]
[1750123776878,0.88148636,107130.0,107120.0,0.41667623]
[1750123777056,0.67612858,107130.0,107120.0,0.43534591]
[1750123777268,0.69479721,107130.0,107120.0,0.43534591]
[1750123777474,0.70413166,107130.0,107120.0,0.4260112]
[1750123777689,0.88148697,107130.0,107120.0,0.4260112]
[1750123777901,0.68546346,107130.0,107120.0,0.43534591]
[1750123778318,0.88148697,107130.0,107120.0,0.4260112]
[1750123778735,0.88148697,107130.0,107120.0,0.43534608]
[1750123779151,0.69479791,107130.0,107120.0,0.43534556]
[1750123779393,0.88148697,107130.0,107120.0,0.42601085]
[1750123779564,0.88148697,107130.0,107120.0,0.43534565]
[1750123780412,0.88148697,107130.0,107120.0,0.42601085]
[1750123780593,0.87215296,107130.0,107120.0,0.42601085]
[1750123781135,0.87215296,107130.0,107120.0,0.43534565]
[1750123782254,0.87215296,107130.0,107120.0,0.42601085]
[1750123782672,0.86281869,107130.0,107120.0,0.41667597]
[1750123783363,0.86281869,107130.0,107120.0,0.42601077]
[1750123783571,0.86281869,107130.0,107120.0,0.41667597]
[1750123783789,0.86281869,107130.0,107120.0,0.39796602]
[1750123784379,0.86281869,107130.0,107120.0,0.41663649]
[1750123784585,0.86281869,107130.0,107120.0,0.40730134]
[1750123784798,1.10705155,107130.0,107120.0,0.0457643]
[1750123785013,1.12335155,107130.0,107120.0,0.2019243]
[1750123785218,1.12335155,107130.0,107120.0,0.0040443]
[1750123785432,1.14572501,107130.0,107120.0,0.1602043]
[1750123785569,1.14572516,107130.0,107120.0,0.1602043]
[1750123785993,1.14572516,107130.0,107120.0,0.1582043]
[1750123786255,1.12335155,107130.0,107120.0,0.1582043]
[1750123786456,0.89029073,107130.0,107120.0,0.1582043]
[1750123786869,0.89029073,107130.0,107120.0,0.1562043]
[1750123787096,0.89229073,107130.0,107120.0,0.1562043]
[1750123787304,1.12535155,107130.0,107120.0,4.43e-05]
[1750123787930,1.14872112,107130.0,107120.0,4.43e-05]
[1750123788357,1.24496288,107130.0,107120.0,4.43e-05]
[1750123797234,1.40112288,107130.0,107120.0,4.43e-05]
[1750123801869,0.13927724,107130.0,107120.0,0.40097553]
[1750123802071,0.12994254,107130.0,107120.0,0.40097553]
[1750123802357,0.88969347,107130.0,107120.0,0.38230594]
[1750123802557,0.69367031,107130.0,107120.0,0.4009758]
[1750123802772,0.88035937,107130.0,107120.0,0.38230594]
[1750123802984,0.64729855,107130.0,107120.0,0.39164082]
[1750123803192,0.69367031,107130.0,107120.0,0.40097562]
[1750123803411,0.69367031,107130.0,107120.0,0.41031033]
[1750123803613,0.69367031,107130.0,107120.0,0.40097562]
[1750123803831,0.46994324,107130.0,107120.0,0.40097553]
[1750123804035,0.71233842,107130.0,107120.0,0.40097553]
[1750123804246,0.89902748,107130.0,107120.0,0.38230594]
[1750123804450,0.88969355,107130.0,107120.0,0.391641]
[1750123805115,0.88969355,107130.0,107120.0,0.40097597]
[1750123805327,0.88969355,107130.0,107120.0,0.41031085]
[1750123805568,0.70300449,107130.0,107120.0,0.41964556]
[1750123806044,0.69367013,107130.0,107120.0,0.41964556]
[1750123806271,0.88969364,107130.0,107120.0,0.41031085]
[1750123806490,0.88969364,107130.0,107120.0,0.391641]
[1750123806925,0.88035945,107130.0,107120.0,0.38230594]
[1750123807377,0.86169073,107130.0,107120.0,0.2278643]
[1750123807606,0.62862991,107130.0,107120.0,0.2278643]
[1750123807859,0.86169073,107130.0,107120.0,0.23719962]
[1750123808072,0.70300431,107130.0,107120.0,0.45191111]
[1750123808298,0.89902782,107130.0,107120.0,0.45191111]
[1750123808756,0.89902782,107130.0,107120.0,0.44257631]
[1750123808942,0.70300431,107130.0,107120.0,0.45191111]
[1750123809193,0.89902782,107130.0,107120.0,0.44257631]
[1750123809407,0.89902782,107130.0,107120.0,0.45191119]
[1750123809613,0.71233876,107130.0,107120.0,0.45191119]
[1750123809825,0.89902782,107130.0,107120.0,0.45191119]
[1750123810251,0.88969381,107130.0,107120.0,0.45191119]
[1750123810680,0.6936703,107130.0,107120.0,0.4612459]
[1750123811351,0.88035936,107130.0,107120.0,0.2278643]
[1750123811771,0.88035936,107130.0,107120.0,0.43324126]
[1750123811983,0.69366917,107130.0,107120.0,0.45191094]
[1750123812190,0.88969233,107130.0,107120.0,0.45191094]
[1750123812442,0.71233754,107130.0,107120.0,0.46124565]
[1750123812682,0.70300327,107130.0,107120.0,0.46124565]
[1750123812905,0.71233754,107130.0,107120.0,0.46124565]
[1750123813117,0.70300327,107130.0,107120.0,0.46124565]
[1750123813335,0.45127451,107130.0,107120.0,0.46124565]
[1750123813732,0.46060844,107130.0,107120.0,0.46124565]
[1750123814190,0.46060835,107130.0,107120.0,0.46124565]
[1750123814399,0.44194085,107130.0,107120.0,0.46124565]
[1750123814604,0.43673375,107130.0,107120.0,0.46124565]
[1750123814811,0.0874,107130.0,107120.0,0.46124565]
[1750123815027,0.10606776,107130.0,107120.0,0.46124565]
[1750123815235,0.34846277,107130.0,107120.0,0.46124565]
[1750123815442,0.33912858,107130.0,107120.0,0.46124565]
[1750123815647,0.32979457,107130.0,107120.0,0.46124565]
[1750123815865,0.32979448,107130.0,107120.0,0.46124565]
[1750123816081,0.0874,107130.0,107120.0,0.46124565]
[1750123816287,0.0874,107130.0,107120.0,0.81054823]
[1750123816728,0.0874,107130.0,107120.0,0.57748741]
[1750123817356,0.0874,107130.0,107120.0,0.81054823]
[1750123818239,0.0854,107130.0,107120.0,0.57748741]
[1750123818449,0.0844,107130.0,107120.0,0.57748741]
[1750123819095,0.0854,107130.0,107120.0,0.57748741]
[1750123819721,0.0844,107130.0,107120.0,0.57748741]
[1750123821570,0.0844,107130.0,107120.0,0.3410979]
[1750123821786,0.54148627,107130.0,107120.0,0.21685079]
[1750123821948,0.54669337,107130.0,107120.0,0.20542134]
[1750123822132,0.54669337,107130.0,107120.0,0.3707964]
[1750123822534,0.54669337,107130.0,107120.0,0.38013137]
[1750123823474,0.54669337,107130.0,107120.0,0.38946625]
[1750123823675,0.54669337,107130.0,107120.0,0.42016625]
[1750123823893,0.36000431,107130.0,107120.0,0.42016564]
[1750123824119,0.34233542,107130.0,107120.0,0.42016564]
[1750123824295,0.11860853,107130.0,107120.0,0.42016564]
[1750123824625,0.12060853,107130.0,107120.0,0.42016564]
[1750123825050,0.09673366,107130.0,107120.0,0.42016564]
[1750123825409,0.0874,107130.0,107120.0,0.26412564]
[1750123825587,0.0874,107130.0,107120.0,0.46180564]
[1750123826235,0.1154016,107130.0,107120.0,0.46180564]
[1750123826439,0.09673366,107130.0,107120.0,0.46180564]
[1750123827072,0.0874,107130.0,107120.0,0.46180564]
[1750123827277,0.09673375,107130.0,107120.0,0.46180564]
[1750123827481,0.0874,107130.0,107120.0,0.46180564]
[1750123828145,0.09673375,107130.0,107120.0,0.46180564]
[1750123828388,0.10606768,107130.0,107120.0,0.46180564]
[1750123828969,0.09673375,107130.0,107120.0,0.46180564]
[1750123829332,0.10606768,107130.0,107120.0,0.46180564]
[1750123830086,0.09673375,107130.0,107120.0,0.46180564]
[1750123830395,0.53515209,107130.0,107120.0,0.26842602]
[1750123830588,1.10408582,107130.0,107120.0,4.43e-05]
[1750123830795,1.23062758,107130.0,107120.0,4.43e-05]
[1750123831020,1.3267768,107130.0,107120.0,4.43e-05]
[1750123831384,1.23062758,107130.0,107120.0,4.43e-05]
[1750123831801,0.98236676,107130.0,107120.0,4.43e-05]
[1750123832676,1.25300245,107130.0,107120.0,4.43e-05]
[1750123832905,1.253002,107130.0,107120.0,4.43e-05]
[1750123833964,1.21542758,107130.0,107120.0,4.43e-05]
[1750123834181,1.20032758,107130.0,107120.0,4.43e-05]
[1750123834666,0.46060913,107130.0,107120.0,0.20542126]
[1750123834919,0.4274,107130.0,107120.0,0.25479094]
[1750123835161,0.43673366,107130.0,107120.0,0.25479094]
[1750123835385,0.4274,107130.0,107120.0,0.25479094]
[1750123835840,0.10606776,107130.0,107120.0,0.25479094]
[1750123836077,0.11540195,107130.0,107120.0,0.25479094]
[1750123836592,0.09673375,107130.0,107120.0,0.25479094]
[1750123836827,0.10606768,107130.0,107120.0,0.25479094]
[1750123837044,0.11540178,107130.0,107120.0,0.25479094]
[1750123837514,0.3484626,107130.0,107120.0,0.25479094]
[1750123838180,0.10606768,107130.0,107120.0,0.25479094]
[1750123838916,0.09673366,107130.0,107120.0,0.25479094]
[1750123839354,0.10606759,107130.0,107120.0,0.25479094]
[1750123839572,0.1060675,107130.0,107120.0,0.25479094]
[1750123839799,0.11540151,107130.0,107120.0,0.25479094]
[1750123840018,0.1060675,107130.0,107120.0,0.25479094]
[1750123840307,0.11540151,107130.0,107120.0,0.25479094]
[1750123840542,0.12473561,107130.0,107120.0,0.25479094]
[1750123840774,0.11540151,107130.0,107120.0,0.25479094]
[1750123841225,0.12473578,107130.0,107120.0,0.25479094]
[1750123841447,0.1247357,107130.0,107120.0,0.25479094]
[1750123841937,0.5258186,107130.0,107120.0,4.43e-05]
[1750123842181,1.14442027,107130.0,107120.0,4.43e-05]
[1750123842419,1.26303084,107130.0,107120.0,4.43e-05]
[1750123843124,1.35539029,107130.0,107120.0,4.43e-05]
[1750123843359,1.38334684,107130.0,107120.0,4.43e-05]
[1750123843596,1.29098739,107130.0,107120.0,4.43e-05]
[1750123844364,0.7969092,107130.0,107120.0,4.43e-05]
[1750123844586,1.26303084,107130.0,107120.0,4.43e-05]
[1750123847457,1.23203084,107130.0,107120.0,4.43e-05]
[1750123848110,1.24803084,107130.0,107120.0,4.43e-05]
[1750123848936,1.26313084,107130.0,107120.0,4.43e-05]
[1750123851259,0.7659092,107130.0,107120.0,4.43e-05]
[1750123851468,1.23203084,107130.0,107120.0,4.43e-05]
[1750123852296,1.24813084,107130.0,107120.0,4.43e-05]
[1750123852501,1.23203084,107130.0,107120.0,4.43e-05]
[1750123854164,0.97660121,107130.0,107120.0,0.0321443]
[1750123854605,0.97660121,107130.0,107120.0,0.0159443]
[1750123855006,0.99893447,107130.0,107120.0,4.43e-05]
[1750123855218,1.23199529,107130.0,107120.0,4.43e-05]
[1750123855861,0.33500167,107130.0,107120.0,0.23782082]
[1750123856070,0.0874,107130.0,107120.0,0.40315553]
[1750123856285,0.0874,107130.0,107120.0,0.63621635]
[1750123856494,0.10606794,107130.0,107120.0,0.40315553]
[1750123856704,0.09673384,107130.0,107120.0,0.40315553]
[1750123857121,0.10606794,107130.0,107120.0,0.40315553]
[1750123857327,0.34846286,107130.0,107120.0,0.24715553]
[1750123857520,0.34846286,107130.0,107120.0,0.44479553]
[1750123857721,0.33912867,107130.0,107120.0,0.44479553]
[1750123858062,0.32046082,107130.0,107120.0,0.44479553]
[1750123859040,0.0874,107130.0,107120.0,0.44479553]
[1750123862024,0.0874,107130.0,107120.0,0.24715553]
[1750123862242,0.33912876,107130.0,107120.0,0.27938117]
[1750123862453,0.34846286,107130.0,107120.0,0.43538126]
[1750123862651,0.34846286,107130.0,107120.0,0.41231631]
[1750123862652,0.53515235,107130.0,107120.0,0.41231631]
[1750123862857,0.5496932,107130.0,107120.0,0.41231623]
[1750123863095,0.36300414,107130.0,107120.0,0.4216512]
[1750123863297,0.3630037,107130.0,107120.0,0.42801632]
[1750123863505,0.37233815,107130.0,107120.0,0.45295129]
[1750123863705,0.37233806,107130.0,107120.0,0.46228617]
[1750123863912,0.37233806,107130.0,107120.0,0.45295129]
[1750123864436,0.38167251,107130.0,107120.0,0.44361632]
[1750123864762,0.3630037,107130.0,107120.0,0.46228609]
[1750123864974,0.3630037,107130.0,107120.0,0.44361632]
[1750123865175,0.37233815,107130.0,107120.0,0.45295129]
[1750123865532,1.14552027,107130.0,107120.0,4.43e-05]
[1750123865732,1.24176203,107130.0,107120.0,4.43e-05]
[1750123866159,1.26409658,107130.0,107120.0,4.43e-05]
[1750123866799,0.71293089,107130.0,107120.0,0.18675079]
[1750123867010,0.97660077,107130.0,107120.0,0.23692134]
[1750123867169,0.71233789,107130.0,107120.0,0.25559128]
[1750123867371,0.72167217,107130.0,107120.0,0.25559128]
[1750123867691,0.71233772,107130.0,107120.0,0.2555912]
[1750123867889,0.72167208,107130.0,107120.0,0.2555912]
[1750123868166,0.44194085,107130.0,107120.0,0.42100591]
[1750123868336,0.4512746,107130.0,107120.0,0.42100591]
[1750123868580,0.67500167,107130.0,107120.0,0.42100591]
[1750123868745,0.44194085,107130.0,107120.0,0.42100591]
[1750123868933,0.46060844,107130.0,107120.0,0.42100591]
[1750123869137,0.44194085,107130.0,107120.0,0.42100591]
[1750123869737,0.4274,107130.0,107120.0,0.42100591]
[1750123870171,0.0874,107130.0,107120.0,0.42100591]
[1750123871121,0.0874,107130.0,107120.0,0.67406673]
[1750123871327,0.0874,107130.0,107120.0,0.77030849]
[1750123871936,0.0874,107130.0,107120.0,0.53724767]
[1750123872861,0.0874,107130.0,107120.0,0.53716767]
[1750123875517,0.0874,107130.0,107120.0,0.77022849]
[1750123876284,0.0874,107130.0,107120.0,0.53716767]
[1750123878873,0.0854,107130.0,107120.0,0.53716767]
[1750123879089,0.0844,107130.0,107120.0,0.53716767]
[1750123885940,0.0844,107130.0,107120.0,0.77022849]
[1750123886328,0.0844,107130.0,107120.0,0.97022849]
[1750123887154,0.0844,107130.0,107120.0,0.81622849]
[1750123887358,0.0844,107130.0,107120.0,1.01374849]
[1750123887776,0.0844,107130.0,107120.0,1.01574849]
[1750123888214,0.0844,107130.0,107120.0,0.81622849]
[1750123888415,0.0844,107130.0,107120.0,0.59422849]
[1750123888638,0.0844,107130.0,107120.0,0.36516767]
[1750123888842,0.32679466,107130.0,107120.0,0.2502564]
[1750123889064,0.33612859,107130.0,107120.0,0.24042608]
[1750123889281,0.34546269,107130.0,107120.0,0.43794608]
[1750123889487,0.36413133,107130.0,107120.0,0.23642625]
[1750123889717,0.35479688,107130.0,107120.0,0.43094564]
[1750123890130,0.34546269,107130.0,107120.0,0.43294564]
[1750123890931,0.33612859,107130.0,107120.0,0.43494564]
[1750123891145,0.69479696,107130.0,107120.0,0.43494564]
[1750123891365,0.70413132,107130.0,107120.0,0.43494564]
[1750123891569,0.70413132,107130.0,107120.0,0.22809093]
[1750123891792,0.92822791,107130.0,107120.0,0.20008602]
[1750123891996,1.14262036,107130.0,107120.0,0.01337962]
[1750123892232,0.90955954,107130.0,107120.0,0.37471632]
[1750123892470,1.32609996,107130.0,107120.0,0.0040443]
[1750123892728,1.35414196,107130.0,107120.0,0.0040443]
[1750123893200,1.35414196,107130.0,107120.0,0.0020443]
[1750123893635,1.35614196,107130.0,107120.0,0.0020443]
[1750123894050,1.35614196,107130.0,107120.0,4.43e-05]
[1750123894259,1.36014196,107130.0,107120.0,4.43e-05]
[1750123894467,1.35614196,107130.0,107120.0,4.43e-05]
[1750123894671,1.35414196,107130.0,107120.0,4.43e-05]
[1750123894888,1.05085242,107130.0,107120.0,4.43e-05]
[1750123895109,0.90370285,107130.0,107120.0,0.20542108]
[1750123895356,0.90370285,107130.0,107120.0,0.18675079]
[1750123895560,0.88335937,107130.0,107120.0,4.43e-05]
[1750123895792,0.88335937,107130.0,107120.0,0.20542134]
[1750123896216,0.88335937,107130.0,107120.0,0.21475649]
[1750123896984,0.86469073,107130.0,107120.0,0.00937962]
[1750123897393,0.86469073,107130.0,107120.0,4.43e-05]
[1750123897799,0.86469073,107130.0,107120.0,0.00937953]
[1750123898659,0.86469073,107130.0,107120.0,4.43e-05]
[1750123899632,0.87989073,107130.0,107120.0,4.43e-05]
[1750123900052,1.11295155,107130.0,107120.0,4.43e-05]
[1750123900486,1.12865155,107130.0,107120.0,4.43e-05]
[1750123902323,1.11295155,107130.0,107120.0,4.43e-05]
[1750123903237,0.87989073,107130.0,107120.0,4.43e-05]
[1750123903453,0.86469073,107130.0,107120.0,4.43e-05]
[1750123904456,1.11405155,107130.0,107120.0,4.43e-05]
[1750123904912,0.88099073,107130.0,107120.0,4.43e-05]
[1750123905109,1.11405155,107130.0,107120.0,4.43e-05]
[1750123905311,0.88099073,107130.0,107120.0,4.43e-05]
[1750123906029,0.86469073,107130.0,107120.0,4.43e-05]
[1750123906576,0.87402509,107130.0,107120.0,0.19608611]
[1750123906777,0.88335901,107130.0,107120.0,0.24585631]
[1750123906974,0.89269285,107130.0,107120.0,0.24585631]
[1750123907189,0.71533815,107130.0,107120.0,0.25519111]
[1750123907446,0.70600379,107130.0,107120.0,0.26452582]
[1750123907646,0.47294289,107130.0,107120.0,0.26452582]
[1750123907858,0.4304,107130.0,107120.0,0.42048582]
[1750123908086,0.0904,107130.0,107120.0,0.42048582]
[1750123908533,0.0904,107130.0,107120.0,0.7497884]
[1750123909549,0.0864,107130.0,107120.0,0.7497884]
[1750123910177,0.0844,107130.0,107120.0,0.7497884]
[1750123910491,0.0844,107130.0,107120.0,0.75895328]
[1750123910914,0.0864,107130.0,107120.0,0.75895328]
[1750123911040,0.0904,107130.0,107120.0,0.95895328]
[1750123911247,0.0884,107130.0,107120.0,0.95895328]
[1750123911457,0.0844,107130.0,107120.0,0.95895328]
[1750123912062,0.0844,107130.0,107120.0,0.96295328]
[1750123912305,0.0844,107130.0,107120.0,0.98295328]
[1750123916858,0.0844,107130.0,107120.0,0.59393246]
[1750123917073,0.0844,107130.0,107120.0,1.22419328]
[1750123917282,0.0844,107130.0,107120.0,1.20167328]
[1750123917694,0.0844,107130.0,107120.0,1.40167328]
[1750123917908,0.0844,107130.0,107120.0,0.36476758]
[1750123918340,0.32679466,107130.0,107120.0,0.23742582]
[1750123918547,0.33612867,107130.0,107120.0,0.27898582]
[1750123918735,0.32679466,107130.0,107120.0,0.43490582]
[1750123918994,0.32679457,107130.0,107120.0,0.43490582]
[1750123919199,0.0844,107130.0,107120.0,0.43490582]
[1750123919408,0.09373375,107130.0,107120.0,0.46500582]
[1750123919628,0.0844,107130.0,107120.0,0.46500582]
[1750123920042,0.09373375,107130.0,107120.0,0.46500582]
[1750123920249,0.09373366,107130.0,107120.0,0.46500582]
[1750123920655,0.1030675,107130.0,107120.0,0.46500582]
[1750123921069,0.0844,107130.0,107120.0,0.46500582]
[1750123925453,0.09373384,107130.0,107120.0,0.30908582]
[1750123925674,0.09373384,107130.0,107120.0,0.43490582]
[1750123925675,0.33612859,107130.0,107120.0,0.43490582]
[1750123925846,0.0844,107130.0,107120.0,0.43490582]
[1750123926235,0.0844,107130.0,107120.0,0.46640582]
[1750123926730,0.09373366,107130.0,107120.0,0.46640582]
[1750123926966,0.09373366,107130.0,107120.0,0.43490582]
[1750123927172,0.10306759,107130.0,107120.0,0.43490582]
[1750123927373,0.1124016,107130.0,107120.0,0.43490582]
[1750123927601,0.0844,107130.0,107120.0,0.43490582]
[1750123927806,0.0844,107130.0,107120.0,0.45080582]
[1750123929110,0.10306759,107130.0,107120.0,0.43490582]
[1750123929554,0.0844,107130.0,107120.0,0.43490582]
[1750123929778,0.0844,107130.0,107120.0,0.46660582]
[1750123929991,0.0844,107130.0,107120.0,0.7959084]
[1750123930601,0.0844,107130.0,107120.0,0.56284758]
[1750123935695,0.10306794,107130.0,107120.0,0.38825807]
[1750123935909,0.32679466,107130.0,107120.0,0.26965102]
[1750123936109,0.0844,107130.0,107120.0,0.45727102]
[1750123936321,0.09373375,107130.0,107120.0,0.45727102]
[1750123936527,0.0844,107130.0,107120.0,0.45727102]
[1750123936734,0.09373375,107130.0,107120.0,0.45727102]
[1750123936959,0.0844,107130.0,107120.0,0.45727102]
[1750123937170,0.0844,107130.0,107120.0,0.7865736]
[1750123937912,0.0844,107130.0,107120.0,0.55351278]
[1750123938556,0.09373375,107130.0,107120.0,0.55351278]
[1750123938824,0.10306768,107130.0,107120.0,0.55351278]
[1750123939074,0.0844,107130.0,107120.0,0.55351278]
[1750123940289,0.0844,107130.0,107120.0,0.7865736]
[1750123940499,0.0844,107130.0,107120.0,0.9865736]
[1750123942285,0.0844,107130.0,107120.0,0.55603278]
[1750123942504,0.0844,107130.0,107120.0,0.55347278]
[1750123943583,0.0844,107130.0,107120.0,0.7865336]
[1750123948147,0.0844,107130.0,107120.0,0.9865336]
[1750123956462,0.0844,107130.0,107120.0,1.23959442]
[1750123956756,0.0844,107130.0,107120.0,1.59959442]
[1750123957477,0.0844,107130.0,107120.0,1.59559442]
[1750123957928,0.0844,107130.0,107120.0,1.60159442]
[1750123958180,0.0844,107130.0,107120.0,1.59559442]
[1750123958426,0.0844,107130.0,107120.0,1.60259442]
[1750123958892,0.0844,107130.0,107120.0,1.3735336]
[1750123959512,0.0844,107130.0,107120.0,1.3695336]
[1750123959928,0.0844,107130.0,107120.0,1.3745336]
[1750123960144,0.0844,107130.0,107120.0,1.60759442]
[1750123960355,0.0844,107130.0,107120.0,1.14147278]
[1750123960565,0.0844,107130.0,107120.0,1.3745336]
[1750123963775,0.0844,107130.0,107120.0,1.60759442]
[1750123963997,0.0844,107130.0,107120.0,1.65759442]
[1750123964205,0.0844,107130.0,107120.0,1.96603527]
[1750123964206,0.07346191,107130.0,107120.0,1.96603527]
[1750123964420,0.07346191,107130.0,107120.0,2.01603527]
[1750123967315,0.06629904,107130.0,107120.0,2.47642327]
[1750123967755,0.03978937,107130.0,107120.0,2.60563955]
[1750123968142,0.03745691,107130.0,107120.0,2.47642327]
[1750123968352,0.0362886,107130.0,107120.0,2.47642327]
[1750123971272,0.0362886,107130.0,107120.0,1.83583927]
[1750123971415,0.0362886,107130.0,107120.0,2.03319927]
[1750123972012,0.0362886,107130.0,107120.0,2.12973927]
[1750123972220,0.0362886,107130.0,107120.0,2.18648227]
[1750123972430,0.0362886,107130.0,107120.0,1.95079127]
[1750123972642,0.0362886,107130.0,107120.0,2.14815127]
[1750123976170,0.0362886,107130.0,107120.0,2.24641127]
[1750123976574,0.0362886,107130.0,107120.0,2.19641127]
[1750123976724,0.0362886,107130.0,107120.0,2.24641127]
[1750123978354,0.0362886,107130.0,107120.0,2.24637127]
[1750123980541,0.0362886,107130.0,107120.0,2.04905127]
[1750123980754,0.0362886,107130.0,107120.0,2.24637127]
[1750123982902,0.0166,107180.0,107170.0,0.21461124]
[1750123983135,0.10592872,107190.0,107180.0,0.23459121]
[1750123983365,0.10592872,107190.0,107180.0,0.91969379]
[1750123983601,0.07422872,107210.0,107200.0,0.23455118]
[1750123983850,0.07422872,107210.0,107200.0,0.52807294]
[1750123984302,0.10640038,107210.0,107200.0,0.52807294]
[1750123984753,0.10740038,107210.0,107200.0,0.52807294]
[1750123985207,0.03517166,107210.0,107200.0,0.76113376]
[1750123985629,0.03517166,107210.0,107200.0,0.52807294]
[1750123985830,0.03517166,107210.0,107200.0,0.76113376]
[1750123986468,0.03517166,107210.0,107200.0,0.52807294]
[1750123987105,0.03217166,107210.0,107200.0,0.52807294]
[1750123987353,0.00047166,107210.0,107200.0,0.52807294]
[1750123987574,0.00047166,107210.0,107200.0,1.16113376]
[1750123987783,0.00147166,107210.0,107200.0,1.16113376]
[1750123988416,0.00147166,107210.0,107200.0,1.19403376]
[1750123990398,0.00147166,107210.0,107200.0,1.30097294]
[1750123990613,0.00147166,107210.0,107200.0,1.53403376]
[1750123991597,0.00047166,107210.0,107200.0,1.53403376]
[1750123992063,0.00047166,107210.0,107200.0,1.58603376]
[1750123992316,0.00047166,107210.0,107200.0,1.58803376]
[1750123992553,0.00047166,107210.0,107200.0,1.82109458]
[1750123992800,0.00047166,107210.0,107200.0,1.83563543]
[1750123993041,0.00047166,107210.0,107200.0,1.88563543]
[1750123993277,0.00047166,107210.0,107200.0,2.17953543]
[1750123993755,0.00047166,107210.0,107200.0,2.58581643]
[1750123994480,0.0316,107250.0,107240.0,0.23447116]
[1750123994720,0.10612872,107260.0,107250.0,0.21445116]
[1750123994922,0.10621678,107260.0,107250.0,0.31069292]
[1750123995105,0.11553913,107260.0,107250.0,0.31069292]
[1750123995341,0.10621678,107260.0,107250.0,0.31069292]
[1750123995976,0.03198806,107260.0,107250.0,0.31069292]
[1750123996398,0.03198806,107260.0,107250.0,0.54375374]
[1750123996605,8.806e-05,107260.0,107250.0,0.74375374]
[1750123996825,8.806e-05,107260.0,107250.0,0.95303093]
[1750123997041,8.806e-05,107260.0,107250.0,0.97303093]
[1750123997251,0.00208806,107260.0,107250.0,0.98933093]
[1750123997688,8.806e-05,107260.0,107250.0,1.23749175]
[1750123998104,8.806e-05,107260.0,107250.0,1.39381175]
[1750123998320,8.806e-05,107260.0,107250.0,1.00443093]
[1750123998536,8.806e-05,107260.0,107250.0,0.93777011]
[1750123998747,8.806e-05,107260.0,107250.0,0.93785011]
[1750123998954,8.806e-05,107260.0,107250.0,1.17091093]
[1750124001039,8.806e-05,107260.0,107250.0,1.17087093]
[1750124001245,8.806e-05,107260.0,107250.0,1.17083093]
[1750124001914,8.806e-05,107260.0,107250.0,1.17079093]
[1750124002328,8.806e-05,107260.0,107250.0,0.93773011]
[1750124002624,8.806e-05,107260.0,107250.0,1.17079093]
[1750124002871,8.806e-05,107260.0,107250.0,1.43505175]
[1750124003788,8.806e-05,107260.0,107250.0,1.77505175]
[1750124005892,8.806e-05,107260.0,107250.0,1.77549175]
[1750124006103,8.806e-05,107260.0,107250.0,1.51123093]
[1750124006576,8.806e-05,107260.0,107250.0,1.54313093]
[1750124006810,8.806e-05,107260.0,107250.0,1.77619175]
[1750124008011,8.806e-05,107260.0,107250.0,1.62799175]
[1750124008255,8.806e-05,107260.0,107250.0,1.82615175]
[1750124008470,8.806e-05,107260.0,107250.0,1.8406926]
[1750124008694,0.01,107280.0,107270.0,0.63441117]
[1750124008929,0.01,107280.0,107270.0,1.15229375]
[1750124009380,0.01,107280.0,107270.0,1.40535457]
[1750124009605,0.01,107280.0,107270.0,1.74535457]
[1750124010045,0.01,107280.0,107270.0,1.80317457]
[1750124011128,0.01,107280.0,107270.0,1.80517457]
[1750124011334,0.01004709,107280.0,107270.0,1.86971542]
[1750124011542,0.00072427,107280.0,107270.0,1.86971542]
[1750124011752,0.00072427,107280.0,107270.0,1.92271542]
[1750124011956,0.00199,107300.0,107290.0,0.6543712]
[1750124012161,0.00199,107300.0,107290.0,1.35283378]
[1750124012367,0.00199,107300.0,107290.0,1.36893378]